[Event "Chelyabinskiy variant-A 2021"]
[Site "Chelyabinsk"]
[Date "2021.03.27"]
[Round "5.13"]
[White "Afanasiev, Nikita"]
[Black "Remizov, Yaroslav"]
[Result "1/2-1/2"]
[ECO "B12"]
[WhiteElo "2519"]
[BlackElo "2411"]
[Annotator "ChessBase"]
[PlyCount "78"]
[EventDate "2021.03.23"]
[EventType "swiss"]
[EventCountry "RUS"]
[SourceTitle "playchess.com"]
[Source "ChessBase"]
[SourceQuality "1"]
[TimeControl "5400+30"]

1. e4 {[%emt 0:10:20]} c6 {[%emt 0:00:03]} 2. d4 {[%emt 0:00:22]} d5 {[%emt 0:00:04]} 3. e5 {[%emt 0:00:03]} c5 {[%emt 0:00:07]} 4. dxc5 {[%emt 0:00:04]} e6 {[%emt 0:00:05]} 5. Nf3 {[%emt 0:00:27]} Bxc5 {[%emt 0:00:49]} 6. Bd3 {[%emt 0:02:53]} Ne7 {[%emt 0:00:44]} 7. Nbd2 {[%emt 0:01:58]} Nbc6 {[%emt 0:03:03]} 8. Nb3 {[%emt 0:07:20]} Bb6 {[%emt 0:00:57]} 9. O-O {[%emt 0:00:33]} Ng6 {[%emt 0:03:27]} 10. Re1 {[%emt 0:01:27]} Bd7 {[%emt 0:03:30]} 11. Qe2 {[%emt 0:21:33]} O-O {[%emt 0:12:09]} 12. Bg5 {[%emt 0:15:32]} Qb8 {[%emt 0:09:21]} 13. Bxg6 {[%emt 0:13:54]} fxg6 {[%emt 0:00:10]} 14. c4 {[%emt 0:00:21]} h6 {[%emt 0:07:28]} 15. c5 {[%emt 0:10:42]} Bc7 {[%emt 0:03:58]} 16. Bh4 {[%emt 0:02:43]} a5 {[%emt 0:12:53]} 17. Bg3 {[%emt 0:00:34]} a4 {[%emt 0:02:02]} 18. Nbd4 {[%emt 0:00:11]} Ra5 {[%emt 0:00:08]} 19. Rac1 {[%emt 0:01:08]} Bd8 {[%emt 0:03:37]} 20. b3 {[%emt 0:04:47]} g5 {[%emt 0:05:43]} 21. h3 {[%emt 0:00:37]} axb3 {[%emt 0:01:42]} 22. Nxb3 {[%emt 0:02:21]} Ra4 {[%emt 0:00:17]} 23. Rb1 {[%emt 0:00:22]} Qa7 {[%emt 0:03:13]} 24. Rb2 {[%emt 0:00:06]} Be8 {[%emt 0:00:18]} 25. Qd3 {[%emt 0:01:14]} Ra3 {[%emt 0:05:08]} 26. Qb1 {[%emt 0:00:14]} Qa4 {[%emt 0:09:51]} 27. Rd2 {[%emt 0:00:10]} g4 {[%emt 0:03:55]} 28. Nfd4 {[%emt 0:00:16]} Nxd4 {[%emt 0:02:59]} 29. Rxd4 {[%emt 0:00:15]} Rxb3 {[%emt 0:00:22]} 30. Rxa4 {[%emt 0:01:58]} Rxb1 {[%emt 0:00:05]} 31. Rxb1 {[%emt 0:00:02]} Bxa4 {[%emt 0:00:03]} 32. Rxb7 {[%emt 0:00:03]} gxh3 {[%emt 0:01:12]} 33. Ra7 {[%emt 0:00:04]} Bc2 {[%emt 0:02:04]} 34. c6 {[%emt 0:00:47]} Bb6 {[%emt 0:00:42]} 35. Rb7 {[%emt 0:00:17]} d4 {[%emt 0:00:19]} 36. Rxb6 {[%emt 0:01:51]} d3 {[%emt 0:00:04]} 37. Bf4 {[%emt 0:00:28]} Rxf4 {[%emt 0:00:03]} 38. Rb8+ {[%emt 0:00:29]} Kf7 {[%emt 0:00:20]} 39. c7 {[%emt 0:00:22]} Rc4 {[%emt 0:00:03]} 1/2-1/2

[Event "Chelyabinskiy variant-A 2021"]
[Site "Chelyabinsk"]
[Date "2021.03.28"]
[Round "6.1"]
[White "Shuvalova, Polina"]
[Black "Shomoev, Anton"]
[Result "1/2-1/2"]
[ECO "E91"]
[WhiteElo "2476"]
[BlackElo "2563"]
[Annotator "ChessBase"]
[PlyCount "83"]
[EventDate "2021.03.23"]
[EventType "swiss"]
[EventCountry "RUS"]
[SourceTitle "playchess.com"]
[Source "ChessBase"]
[SourceQuality "1"]
[TimeControl "5400+30"]

1. d4 {[%emt 0:00:00]} Nf6 {[%emt 0:01:28]} 2. c4 {[%emt 0:00:00]} g6 {[%emt 0:00:08]} 3. Nc3 {[%emt 0:00:00]} Bg7 {[%emt 0:00:08]} 4. e4 {[%emt 0:00:00]} d6 {[%emt 0:00:02]} 5. Nf3 {[%emt 0:00:02]} O-O {[%emt 0:00:07]} 6. Be2 {[%emt 0:00:05]} c6 {[%emt 0:00:18]} 7. O-O {[%emt 0:00:14]} e5 {[%emt 0:00:02]} 8. dxe5 {[%emt 0:00:17]} dxe5 {[%emt 0:00:03]} 9. Nxe5 {[%emt 0:00:12]} Nxe4 {[%emt 0:00:08]} 10. Nxe4 {[%emt 0:00:07]} Bxe5 {[%emt 0:00:02]} 11. Bg5 {[%emt 0:00:08]} Qxd1 {[%emt 0:00:03]} 12. Rfxd1 {[%emt 0:00:09]} Nd7 {[%emt 0:00:23]} 13. Nd6 {[%emt 0:07:01]} Nf6 {[%emt 0:00:17]} 14. Bf3 {[%emt 0:00:39]} Kg7 {[%emt 0:01:05]} 15. Rd2 {[%emt 0:10:51]} h6 {[%emt 0:00:17]} 16. Be3 {[%emt 0:01:07]} Ng4 {[%emt 0:00:09]} 17. Bxg4 {[%emt 0:07:48]} Bxg4 {[%emt 0:00:47]} 18. h3 {[%emt 0:06:33]} Be6 {[%emt 0:26:48]} 19. Nxb7 {[%emt 0:02:10]} Bxc4 {[%emt 0:02:49]} 20. Na5 {[%emt 0:01:20]} Bd5 {[%emt 0:00:12]} 21. Rc1 {[%emt 0:00:49]} Rfc8 {[%emt 0:07:13]} 22. b3 {[%emt 0:02:01]} Bd6 {[%emt 0:08:36]} 23. Rd4 {[%emt 0:05:24]} g5 {[%emt 0:10:38]} 24. h4 {[%emt 0:04:46]} Ba3 {[%emt 0:04:17]} 25. Rc2 {[%emt 0:01:42]} Be7 {[%emt 0:00:12]} 26. hxg5 {[%emt 0:02:08]} hxg5 {[%emt 0:00:42]} 27. f3 {[%emt 0:03:31]} f6 {[%emt 0:04:18]} 28. Kf2 {[%emt 0:00:29]} Bd8 {[%emt 0:00:49]} 29. Nb7 {[%emt 0:05:02]} Bb6 {[%emt 0:00:42]} 30. Ra4 {[%emt 0:01:08]} Re8 {[%emt 0:01:20]} 31. Bc5 {[%emt 0:06:06]} Kg6 {[%emt 0:04:31]} 32. Ra6 {[%emt 0:06:39]} Rab8 {[%emt 0:02:07]} 33. Na5 {[%emt 0:02:19]} Re6 {[%emt 0:02:39]} 34. Bxb6 {[%emt 0:05:14]} axb6 {[%emt 0:00:07]} 35. Nc4 {[%emt 0:00:09]} Bxc4 {[%emt 0:02:18]} 36. Rxc4 {[%emt 0:00:13]} Rd8 {[%emt 0:00:37]} 37. Rc2 {[%emt 0:02:36]} c5 {[%emt 0:00:01]} 38. Re2 {[%emt 0:02:41]} Rdd6 {[%emt 0:03:14]} 39. a4 {[%emt 0:00:39]} Kf7 {[%emt 0:00:55]} 40. Ra7+ {[%emt 0:01:02]} Kg6 {[%emt 0:00:06]} 41. Ra6 {[%emt 0:01:41]} Kf7 {[%emt 0:00:05]} 42. Ra7+ {[%emt 0:00:09]} 1/2-1/2

[Event "Chelyabinskiy variant-A 2021"]
[Site "Chelyabinsk"]
[Date "2021.03.28"]
[Round "6.2"]
[White "Girya, Olga"]
[Black "Frolyanov, Dmitry"]
[Result "1/2-1/2"]
[ECO "D38"]
[WhiteElo "2432"]
[BlackElo "2542"]
[Annotator "ChessBase"]
[PlyCount "109"]
[EventDate "2021.03.23"]
[EventType "swiss"]
[EventCountry "RUS"]
[SourceTitle "playchess.com"]
[Source "ChessBase"]
[SourceQuality "1"]
[TimeControl "5400+30"]

1. d4 {[%emt 0:07:12]} Nf6 {[%emt 0:00:00]} 2. c4 {[%emt 0:00:21]} e6 {[%emt 0:00:00]} 3. Nf3 {[%emt 0:00:06]} d5 {[%emt 0:00:00]} 4. Nc3 {[%emt 0:00:17]} Bb4 {[%emt 0:00:00]} 5. Qa4+ {[%emt 0:00:36]} Nc6 {[%emt 0:00:10]} 6. e3 {[%emt 0:00:10]} O-O {[%emt 0:00:19]} 7. Qc2 {[%emt 0:00:10]} Re8 {[%emt 0:00:18]} 8. Bd2 {[%emt 0:03:41]} Bf8 {[%emt 0:00:28]} 9. a3 {[%emt 0:01:14]} e5 {[%emt 0:00:22]} 10. dxe5 {[%emt 0:00:33]} Nxe5 {[%emt 0:00:17]} 11. cxd5 {[%emt 0:01:02]} Nxf3+ {[%emt 0:00:33]} 12. gxf3 {[%emt 0:00:06]} Nxd5 {[%emt 0:00:19]} 13. Bd3 {[%emt 0:01:30]} Nxc3 {[%emt 0:02:37]} 14. Bxc3 {[%emt 0:00:20]} Qh4 {[%emt 0:00:09]} 15. O-O-O {[%emt 0:00:29]} g6 {[%emt 0:00:16]} 16. Rhg1 {[%emt 0:04:22]} Qh5 {[%emt 0:38:02]} 17. Qa4 {[%emt 0:07:20]} Rd8 {[%emt 0:06:01]} 18. Qf4 {[%emt 0:07:51]} Rd6 {[%emt 0:09:35]} 19. Bc4 {[%emt 0:29:39]} Qf5 {[%emt 0:04:09]} 20. Rxd6 {[%emt 0:02:02]} Qxf4 {[%emt 0:02:36]} 21. Rdxg6+ {[%emt 0:02:54]} hxg6 {[%emt 0:00:06]} 22. exf4 {[%emt 0:00:13]} Bf5 {[%emt 0:00:26]} 23. Bd5 {[%emt 0:04:29]} Bd6 {[%emt 0:06:04]} 24. Be5 {[%emt 0:02:28]} Re8 {[%emt 0:01:09]} 25. Bxd6 {[%emt 0:00:26]} cxd6 {[%emt 0:00:07]} 26. Kd2 {[%emt 0:01:19]} Re7 {[%emt 0:00:44]} 27. Re1 {[%emt 0:10:20]} Rc7 {[%emt 0:00:28]} 28. Re8+ {[%emt 0:03:09]} Kg7 {[%emt 0:00:12]} 29. Ra8 {[%emt 0:00:29]} b6 {[%emt 0:01:13]} 30. Ke3 {[%emt 0:05:24]} Bc8 {[%emt 0:01:05]} 31. b4 {[%emt 0:00:54]} Kf6 {[%emt 0:00:20]} 32. a4 {[%emt 0:01:04]} Bd7 {[%emt 0:04:24]} 33. a5 {[%emt 0:00:40]} bxa5 {[%emt 0:01:00]} 34. bxa5 {[%emt 0:00:00]} Be6 {[%emt 0:02:41]} 35. Be4 {[%emt 0:00:27]} Bc8 {[%emt 0:01:19]} 36. Kd4 {[%emt 0:00:52]} Ke7 {[%emt 0:00:51]} 37. h4 {[%emt 0:01:15]} Kf6 {[%emt 0:01:54]} 38. Bd3 {[%emt 0:00:46]} Bf5 {[%emt 0:00:29]} 39. Be4 {[%emt 0:00:30]} Bc8 {[%emt 0:00:06]} 40. Bd3 {[%emt 0:01:17]} Bf5 {[%emt 0:00:09]} 41. Bxf5 {[%emt 0:01:23]} Kxf5 {[%emt 0:00:18]} 42. a6 {[%emt 0:00:30]} Kxf4 {[%emt 0:00:34]} 43. Rb8 {[%emt 0:00:22]} Rc1 {[%emt 0:03:53]} 44. Rb7 {[%emt 0:00:18]} f5 {[%emt 0:00:05]} 45. Rxa7 {[%emt 0:00:06]} Ra1 {[%emt 0:00:06]} 46. Kc4 {[%emt 0:01:10]} Kxf3 {[%emt 0:00:23]} 47. Kb5 {[%emt 0:00:08]} Rb1+ {[%emt 0:01:49]} 48. Kc6 {[%emt 0:00:06]} Ra1 {[%emt 0:00:17]} 49. Kb6 {[%emt 0:01:02]} Rb1+ {[%emt 0:00:29]} 50. Kc6 {[%emt 0:00:53]} Ra1 {[%emt 0:00:06]} 51. Kb6 {[%emt 0:00:47]} Rb1+ {[%emt 0:00:07]} 52. Kc7 {[%emt 0:00:30]} Ra1 {[%emt 0:00:35]} 53. Kb6 {[%emt 0:00:38]} Rb1+ {[%emt 0:00:12]} 54. Kc7 {[%emt 0:00:05]} Ra1 {[%emt 0:00:05]} 55. Kb6 {[%emt 0:00:51]} 1/2-1/2

[Event "Chelyabinskiy variant-A 2021"]
[Site "Chelyabinsk"]
[Date "2021.03.28"]
[Round "6.3"]
[White "Makarian, Rudik"]
[Black "Fedorov, Alexei"]
[Result "1/2-1/2"]
[ECO "E73"]
[WhiteElo "2458"]
[BlackElo "2529"]
[Annotator "ChessBase"]
[PlyCount "91"]
[EventDate "2021.03.23"]
[EventType "swiss"]
[EventCountry "RUS"]
[SourceTitle "playchess.com"]
[Source "ChessBase"]
[SourceQuality "1"]
[TimeControl "5400+30"]

1. d4 {[%emt 0:00:00]} Nf6 {[%emt 0:00:00]} 2. c4 {[%emt 0:00:00]} g6 {[%emt 0:00:00]} 3. Nc3 {[%emt 0:00:00]} Bg7 {[%emt 0:00:00]} 4. e4 {[%emt 0:00:00]} d6 {[%emt 0:00:02]} 5. Be2 {[%emt 0:00:00]} O-O {[%emt 0:00:10]} 6. Be3 {[%emt 0:00:00]} c6 {[%emt 0:02:53]} 7. Nf3 {[%emt 0:00:06]} e5 {[%emt 0:00:10]} 8. d5 {[%emt 0:00:04]} Ng4 {[%emt 0:00:17]} 9. Bg5 {[%emt 0:00:08]} f6 {[%emt 0:00:05]} 10. Bc1 {[%emt 0:00:23]} c5 {[%emt 0:03:54]} 11. h3 {[%emt 0:27:20]} Nh6 {[%emt 0:00:10]} 12. g4 {[%emt 0:00:01]} Nf7 {[%emt 0:01:42]} 13. Rg1 {[%emt 0:00:02]} Bh6 {[%emt 0:00:47]} 14. Bxh6 {[%emt 0:00:03]} Nxh6 {[%emt 0:00:05]} 15. Qd2 {[%emt 0:00:01]} Nf7 {[%emt 0:02:16]} 16. O-O-O {[%emt 0:00:52]} Ng5 {[%emt 0:15:09]} 17. Rg3 {[%emt 0:05:16]} Nxf3 {[%emt 0:00:09]} 18. Bxf3 {[%emt 0:00:13]} Na6 {[%emt 0:00:08]} 19. h4 {[%emt 0:01:07]} Bd7 {[%emt 0:00:43]} 20. Be2 {[%emt 0:17:26]} Nc7 {[%emt 0:12:40]} 21. Rdg1 {[%emt 0:00:13]} Qe7 {[%emt 0:01:15]} 22. g5 {[%emt 0:06:58]} fxg5 {[%emt 0:13:42]} 23. Rxg5 {[%emt 0:00:32]} Kh8 {[%emt 0:09:31]} 24. Qe3 {[%emt 0:18:36]} Rf4 {[%emt 0:07:31]} 25. Qg3 {[%emt 0:01:59]} Rg8 {[%emt 0:07:09]} 26. h5 {[%emt 0:04:01]} Be8 {[%emt 0:02:31]} 27. Rf5 {[%emt 0:07:16]} g5 {[%emt 0:07:24]} 28. Rxg5 {[%emt 0:00:03]} Rxg5 {[%emt 0:00:08]} 29. Qxg5 {[%emt 0:00:03]} Qxg5 {[%emt 0:00:05]} 30. Rxg5 {[%emt 0:00:02]} Rxf2 {[%emt 0:00:28]} 31. Rf5 {[%emt 0:00:57]} Rf4 {[%emt 0:04:57]} 32. Rxf4 {[%emt 0:01:14]} exf4 {[%emt 0:00:04]} 33. Bg4 {[%emt 0:00:21]} Na8 {[%emt 0:02:19]} 34. h6 {[%emt 0:06:35]} Nb6 {[%emt 0:00:33]} 35. b3 {[%emt 0:00:00]} a6 {[%emt 0:03:56]} 36. Ne2 {[%emt 0:03:02]} Bg6 {[%emt 0:01:20]} 37. Bf3 {[%emt 0:00:21]} Nd7 {[%emt 0:00:09]} 38. Nxf4 {[%emt 0:00:09]} Ne5 {[%emt 0:00:08]} 39. Bg2 {[%emt 0:00:25]} Kg8 {[%emt 0:00:36]} 40. Kd2 {[%emt 0:01:01]} Kf7 {[%emt 0:00:20]} 41. Bh3 {[%emt 0:00:48]} Bxe4 {[%emt 0:00:44]} 42. Bc8 {[%emt 0:00:08]} a5 {[%emt 0:00:35]} 43. Bxb7 {[%emt 0:01:20]} Ng4 {[%emt 0:02:04]} 44. Kc3 {[%emt 0:00:40]} Nxh6 {[%emt 0:00:29]} 45. Ne6 Ng4 46. Kd2 1/2-1/2

[Event "Chelyabinskiy variant-A 2021"]
[Site "Chelyabinsk"]
[Date "2021.03.28"]
[Round "6.4"]
[White "Bryakin, Mikhail"]
[Black "Drygalov, Andrey"]
[Result "0-1"]
[ECO "A22"]
[WhiteElo "2464"]
[BlackElo "2500"]
[Annotator "ChessBase"]
[PlyCount "150"]
[EventDate "2021.03.23"]
[EventType "swiss"]
[EventCountry "RUS"]
[SourceTitle "playchess.com"]
[Source "ChessBase"]
[SourceQuality "1"]
[TimeControl "5400+30"]

1. c4 {[%emt 0:00:00]} Nf6 {[%emt 0:03:11]} 2. Nc3 {[%emt 0:00:00]} e5 {[%emt 0:01:47]} 3. g3 {[%emt 0:00:07]} Bb4 {[%emt 0:00:36]} 4. Bg2 {[%emt 0:00:24]} O-O {[%emt 0:00:30]} 5. e3 {[%emt 0:03:07]} Bxc3 {[%emt 0:00:31]} 6. bxc3 {[%emt 0:00:51]} d6 {[%emt 0:05:29]} 7. Ne2 {[%emt 0:01:37]} e4 {[%emt 0:02:37]} 8. f3 {[%emt 0:06:51]} exf3 {[%emt 0:02:31]} 9. Bxf3 {[%emt 0:00:15]} Nc6 {[%emt 0:00:18]} 10. d3 {[%emt 0:02:09]} Re8 {[%emt 0:09:42]} 11. e4 {[%emt 0:06:24]} Bg4 {[%emt 0:14:23]} 12. Bxg4 {[%emt 0:06:27]} Nxg4 {[%emt 0:00:11]} 13. Nd4 {[%emt 0:00:18]} Nxd4 {[%emt 0:04:03]} 14. cxd4 {[%emt 0:03:53]} Qf6 {[%emt 0:04:23]} 15. Qe2 {[%emt 0:06:35]} Qxd4 {[%emt 0:00:18]} 16. Bb2 {[%emt 0:00:15]} Qe3 {[%emt 0:00:13]} 17. Qxe3 {[%emt 0:00:28]} Nxe3 {[%emt 0:00:04]} 18. Kd2 {[%emt 0:00:27]} Ng4 {[%emt 0:00:05]} 19. Rab1 {[%emt 0:00:49]} b6 {[%emt 0:00:18]} 20. Bc3 {[%emt 0:00:44]} Ne5 {[%emt 0:01:08]} 21. Rhf1 {[%emt 0:06:02]} Re6 {[%emt 0:01:06]} 22. Rf5 {[%emt 0:00:34]} Rae8 {[%emt 0:01:01]} 23. a4 {[%emt 0:01:46]} a5 {[%emt 0:03:12]} 24. Rb5 {[%emt 0:03:19]} Nd7 {[%emt 0:01:44]} 25. Bd4 {[%emt 0:00:23]} Rh6 {[%emt 0:00:14]} 26. h4 {[%emt 0:01:57]} Rg6 {[%emt 0:00:34]} 27. Rf3 {[%emt 0:02:57]} Rge6 {[%emt 0:08:18]} 28. Rff5 {[%emt 0:04:39]} f6 {[%emt 0:04:23]} 29. Rf2 {[%emt 0:02:34]} Kf7 {[%emt 0:00:10]} 30. Rff5 {[%emt 0:01:03]} Ne5 {[%emt 0:01:41]} 31. Rf1 {[%emt 0:02:08]} Ke7 {[%emt 0:00:33]} 32. Rf5 {[%emt 0:01:37]} Rh8 {[%emt 0:00:30]} 33. Rf1 {[%emt 0:03:41]} h5 {[%emt 0:01:22]} 34. Be3 {[%emt 0:02:16]} Kd7 {[%emt 0:02:05]} 35. Rf5 {[%emt 0:00:36]} g6 {[%emt 0:01:05]} 36. Rf1 {[%emt 0:00:17]} Rf8 {[%emt 0:00:19]} 37. Rbb1 {[%emt 0:08:44]} Ng4 {[%emt 0:00:58]} 38. Bd4 {[%emt 0:00:27]} Re7 {[%emt 0:00:19]} 39. Rf4 {[%emt 0:02:44]} Ref7 {[%emt 0:00:52]} 40. Re1 {[%emt 0:01:03]} f5 {[%emt 0:05:26]} 41. e5 {[%emt 0:01:43]} dxe5 {[%emt 0:00:11]} 42. Bxe5 {[%emt 0:00:01]} Re7 {[%emt 0:01:39]} 43. Bc3 {[%emt 0:01:05]} Rxe1 {[%emt 0:01:35]} 44. Kxe1 {[%emt 0:00:02]} Kc6 {[%emt 0:00:16]} 45. Kd2 {[%emt 0:00:58]} Nf6 {[%emt 0:01:01]} 46. Rf1 {[%emt 0:05:54]} Nd7 {[%emt 0:02:14]} 47. Re1 {[%emt 0:04:12]} Nc5 {[%emt 0:01:45]} 48. Re7 {[%emt 0:00:30]} Rd8 {[%emt 0:02:00]} 49. d4 {[%emt 0:00:08]} Rd7 {[%emt 0:09:11]} 50. Rxd7 {[%emt 0:02:28]} Ne4+ {[%emt 0:00:46]} 51. Kd3 {[%emt 0:00:36]} Kxd7 {[%emt 0:00:06]} 52. Be1 {[%emt 0:00:14]} Ke6 {[%emt 0:00:57]} 53. Ke3 {[%emt 0:00:27]} Kf6 {[%emt 0:00:10]} 54. Kf4 {[%emt 0:01:40]} Nd6 {[%emt 0:02:33]} 55. c5 {[%emt 0:00:11]} Ne4 {[%emt 0:00:06]} 56. cxb6 {[%emt 0:03:02]} cxb6 {[%emt 0:00:10]} 57. d5 {[%emt 0:00:08]} Nc5 {[%emt 0:02:45]} 58. Bc3+ {[%emt 0:00:01]} Ke7 {[%emt 0:00:27]} 59. Bd4 {[%emt 0:01:01]} Nxa4 {[%emt 0:01:00]} 60. d6+ {[%emt 0:00:01]} Kxd6 {[%emt 0:00:48]} 61. Kg5 {[%emt 0:00:02]} Kd5 {[%emt 0:00:46]} 62. Bg7 {[%emt 0:03:13]} Ke6 {[%emt 0:00:40]} 63. Kxg6 {[%emt 0:00:25]} Nc5 {[%emt 0:01:07]} 64. Bd4 {[%emt 0:01:00]} Ne4 {[%emt 0:00:54]} 65. Bxb6 {[%emt 0:00:23]} a4 {[%emt 0:00:04]} 66. Kxh5 {[%emt 0:00:58]} Kd5 {[%emt 0:00:31]} 67. Be3 {[%emt 0:00:17]} a3 {[%emt 0:00:09]} 68. Bc1 {[%emt 0:00:13]} a2 {[%emt 0:00:05]} 69. Bb2 {[%emt 0:00:01]} Nxg3+ {[%emt 0:00:12]} 70. Kg5 {[%emt 0:00:15]} Ke4 {[%emt 0:00:30]} 71. Bc3 {[%emt 0:00:41]} f4 {[%emt 0:00:08]} 72. Kg4 {[%emt 0:00:01]} Nf5 {[%emt 0:00:08]} 73. h5 {[%emt 0:00:16]} f3 {[%emt 0:00:04]} 74. Kh3 {[%emt 0:00:08]} Kd3 {[%emt 0:00:08]} 75. Bg7 {[%emt 0:00:09]} f2 {[%emt 0:00:06]} 0-1

[Event "Chelyabinskiy variant-A 2021"]
[Site "Chelyabinsk"]
[Date "2021.03.28"]
[Round "6.5"]
[White "Ponkratov, Pavel"]
[Black "Remizov, Yaroslav"]
[Result "1-0"]
[ECO "B12"]
[WhiteElo "2619"]
[BlackElo "2411"]
[Annotator "ChessBase"]
[PlyCount "75"]
[EventDate "2021.03.23"]
[EventType "swiss"]
[EventCountry "RUS"]
[SourceTitle "playchess.com"]
[Source "ChessBase"]
[SourceQuality "1"]
[TimeControl "5400+30"]

1. e4 {[%emt 0:00:00]} c6 {[%emt 0:01:11]} 2. d4 {[%emt 0:00:00]} d5 {[%emt 0:00:04]} 3. e5 {[%emt 0:00:00]} c5 {[%emt 0:00:04]} 4. dxc5 {[%emt 0:00:01]} e6 {[%emt 0:00:05]} 5. a3 {[%emt 0:00:04]} Bxc5 {[%emt 0:00:05]} 6. Qg4 {[%emt 0:00:03]} g6 {[%emt 0:03:09]} 7. Nf3 {[%emt 0:04:09]} Nc6 {[%emt 0:06:23]} 8. b4 {[%emt 0:09:11]} Bf8 {[%emt 0:02:58]} 9. Bb2 {[%emt 0:00:11]} h5 {[%emt 0:01:42]} 10. Qg3 {[%emt 0:04:15]} Nh6 {[%emt 0:03:43]} 11. Bd3 {[%emt 0:03:09]} Nf5 {[%emt 0:01:37]} 12. Bxf5 {[%emt 0:15:17]} gxf5 {[%emt 0:00:10]} 13. h4 {[%emt 0:00:05]} a5 {[%emt 0:05:24]} 14. b5 {[%emt 0:00:48]} Ne7 {[%emt 0:00:32]} 15. Nbd2 {[%emt 0:00:48]} Ng6 {[%emt 0:02:36]} 16. c4 {[%emt 0:07:42]} Bh6 {[%emt 0:04:30]} 17. Rd1 {[%emt 0:03:16]} Rg8 {[%emt 0:08:26]} 18. Ng5 {[%emt 0:05:50]} Nxh4 {[%emt 0:09:46]} 19. Qxh4 {[%emt 0:03:00]} Qxg5 {[%emt 0:00:06]} 20. Qxh5 {[%emt 0:03:32]} Qxh5 {[%emt 0:07:42]} 21. Rxh5 {[%emt 0:00:11]} Bxd2+ {[%emt 0:00:23]} 22. Rxd2 {[%emt 0:00:06]} dxc4 {[%emt 0:01:08]} 23. Rh4 {[%emt 0:05:01]} Bd7 {[%emt 0:03:28]} 24. a4 {[%emt 0:00:28]} Rc8 {[%emt 0:09:50]} 25. Bc3 {[%emt 0:04:12]} Rc5 {[%emt 0:01:51]} 26. f3 {[%emt 0:01:45]} Ke7 {[%emt 0:14:00]} 27. Kf2 {[%emt 0:10:56]} Ra8 {[%emt 0:09:43]} 28. Rc2 {[%emt 0:02:32]} Be8 {[%emt 0:02:18]} 29. Bd4 {[%emt 0:00:16]} Rcc8 {[%emt 0:00:37]} 30. Bb2 {[%emt 0:01:51]} b6 {[%emt 0:00:37]} 31. Rd2 {[%emt 0:01:39]} Kf8 {[%emt 0:00:46]} 32. Ba3+ {[%emt 0:00:05]} Kg7 {[%emt 0:00:19]} 33. Be7 {[%emt 0:00:08]} c3 {[%emt 0:00:13]} 34. Bf6+ {[%emt 0:00:05]} Kg6 {[%emt 0:00:03]} 35. Rc2 {[%emt 0:00:39]} Ra7 {[%emt 0:00:55]} 36. g4 {[%emt 0:03:15]} Rd7 {[%emt 0:00:57]} 37. Kg3 {[%emt 0:02:02]} Rd2 {[%emt 0:00:29]} 38. g5 {[%emt 0:00:09]} 1-0

[Event "Chelyabinskiy variant-A 2021"]
[Site "Chelyabinsk"]
[Date "2021.03.28"]
[Round "6.6"]
[White "Lysyj, Igor"]
[Black "Kovalchuk, Alexey"]
[Result "1-0"]
[ECO "A59"]
[WhiteElo "2605"]
[BlackElo "2379"]
[Annotator "ChessBase"]
[PlyCount "81"]
[EventDate "2021.03.23"]
[EventType "swiss"]
[EventCountry "RUS"]
[SourceTitle "playchess.com"]
[Source "ChessBase"]
[SourceQuality "1"]
[TimeControl "5400+30"]

1. d4 {[%emt 0:05:11]} Nf6 {[%emt 0:00:00]} 2. c4 {[%emt 0:00:03]} c5 {[%emt 0:00:10]} 3. d5 {[%emt 0:00:04]} b5 {[%emt 0:00:05]} 4. cxb5 {[%emt 0:00:04]} a6 {[%emt 0:00:09]} 5. bxa6 {[%emt 0:00:04]} Bxa6 {[%emt 0:00:28]} 6. Nc3 {[%emt 0:00:11]} d6 {[%emt 0:00:32]} 7. e4 {[%emt 0:00:13]} Bxf1 {[%emt 0:00:10]} 8. Kxf1 {[%emt 0:00:04]} g6 {[%emt 0:00:08]} 9. g3 {[%emt 0:00:05]} Bg7 {[%emt 0:00:05]} 10. Nf3 {[%emt 0:00:13]} Nbd7 {[%emt 0:00:18]} 11. Kg2 {[%emt 0:00:13]} O-O {[%emt 0:00:12]} 12. a4 {[%emt 0:00:09]} Qb6 {[%emt 0:00:28]} 13. Qe2 {[%emt 0:04:05]} Rfb8 {[%emt 0:02:43]} 14. Nb5 {[%emt 0:03:21]} Ne8 {[%emt 0:01:37]} 15. Ra3 {[%emt 0:01:48]} Nc7 {[%emt 0:00:20]} 16. Nxc7 {[%emt 0:00:06]} Qxc7 {[%emt 0:00:06]} 17. b3 {[%emt 0:00:07]} Qa5 {[%emt 0:00:20]} 18. Bd2 {[%emt 0:08:57]} Qa6 {[%emt 0:00:28]} 19. Qxa6 {[%emt 0:02:49]} Rxa6 {[%emt 0:00:10]} 20. a5 {[%emt 0:00:05]} f5 {[%emt 0:15:03]} 21. exf5 {[%emt 0:04:45]} Nf6 {[%emt 0:05:01]} 22. fxg6 {[%emt 0:00:08]} hxg6 {[%emt 0:00:20]} 23. h4 {[%emt 0:01:56]} Nxd5 {[%emt 0:00:37]} 24. h5 {[%emt 0:00:18]} gxh5 {[%emt 0:00:35]} 25. Rxh5 {[%emt 0:00:06]} Nc3 {[%emt 0:04:14]} 26. Be1 {[%emt 0:09:04]} Bf6 {[%emt 0:13:00]} 27. Rf5 {[%emt 0:08:40]} Nb1 {[%emt 0:01:58]} 28. Ra4 {[%emt 0:00:41]} Rxb3 {[%emt 0:00:20]} 29. Ng5 {[%emt 0:05:06]} Kg7 {[%emt 0:19:58]} 30. Ne6+ {[%emt 0:10:35]} Kf7 {[%emt 0:05:12]} 31. Re4 {[%emt 0:05:04]} c4 {[%emt 0:11:39]} 32. Nc7 {[%emt 0:00:35]} Rc6 {[%emt 0:00:56]} 33. Nd5 {[%emt 0:00:08]} Rb7 {[%emt 0:01:17]} 34. a6 {[%emt 0:05:37]} Ra7 {[%emt 0:09:46]} 35. Rxe7+ {[%emt 0:02:50]} Rxe7 {[%emt 0:00:22]} 36. Rxf6+ {[%emt 0:00:14]} Ke8 {[%emt 0:01:21]} 37. Nxe7 {[%emt 0:00:10]} Kxe7 {[%emt 0:00:32]} 38. a7 {[%emt 0:00:16]} Ra6 {[%emt 0:00:18]} 39. Rh6 {[%emt 0:00:20]} c3 {[%emt 0:01:57]} 40. Bxc3 {[%emt 0:00:33]} Nxc3 {[%emt 0:00:12]} 41. Rh8 {[%emt 0:00:03]} 1-0